[Event "*** SCC Grand Prix: Titled Tuesday Blitz"]
[Site "Chess.com"]
[Date "2020.06.02"]
[Round "4"]
[White "letsgoband"]
[Black "DenLaz"]
[Result "0-1"]
[WhiteElo "2441"]
[BlackElo "2633"]
[TimeControl "180+1"]
[EndTime "10:38:15 PDT"]
[Termination "DenLaz won by resignation"]

1. e4 {[%clk 0:03:00.9]} 1... e5 {[%clk 0:02:56.4]} 2. Nf3 {[%clk 0:03:00.8]}
2... Nc6 {[%clk 0:02:56.9]} 3. Bb5 {[%clk 0:03:00.9]} 3... a6 {[%clk 0:02:55.3]}
4. Ba4 {[%clk 0:03:01.2]} 4... Nf6 {[%clk 0:02:53.9]} 5. O-O {[%clk 0:03:01.1]}
5... Be7 {[%clk 0:02:52.9]} 6. Re1 {[%clk 0:03:01.3]} 6... b5 {[%clk 0:02:53.4]}
7. Bb3 {[%clk 0:03:01.5]} 7... d6 {[%clk 0:02:53.9]} 8. c3 {[%clk 0:03:01.4]}
8... O-O {[%clk 0:02:54.3]} 9. h3 {[%clk 0:03:01.9]} 9... Bb7 {[%clk 0:02:54]}
10. d4 {[%clk 0:02:58.7]} 10... Re8 {[%clk 0:02:54]} 11. Nbd2 {[%clk 0:02:52.6]}
11... Bf8 {[%clk 0:02:51]} 12. a3 {[%clk 0:02:44.8]} 12... g6 {[%clk 0:02:49.1]}
13. d5 {[%clk 0:02:33.6]} 13... Nb8 {[%clk 0:02:42.7]} 14. Nf1 {[%clk
0:02:28.2]} 14... Nbd7 {[%clk 0:02:39.8]} 15. Ng3 {[%clk 0:02:26.7]} 15... Bg7
{[%clk 0:02:37.8]} 16. Bg5 {[%clk 0:02:23.4]} 16... h6 {[%clk 0:02:35.8]} 17.
Be3 {[%clk 0:02:23.5]} 17... Qe7 {[%clk 0:02:33.6]} 18. Qd2 {[%clk 0:02:19.7]}
18... Kh7 {[%clk 0:02:32.6]} 19. Bc2 {[%clk 0:02:15.2]} 19... Rad8 {[%clk
0:02:30.3]} 20. a4 {[%clk 0:02:11.1]} 20... c6 {[%clk 0:02:26.9]} 21. axb5
{[%clk 0:02:09]} 21... cxd5 {[%clk 0:02:25.8]} 22. bxa6 {[%clk 0:02:08.4]} 22...
Ba8 {[%clk 0:02:25.8]} 23. exd5 {[%clk 0:01:19.6]} 23... Nxd5 {[%clk 0:02:23.6]}
24. h4 {[%clk 0:00:51.2]} 24... f5 {[%clk 0:02:16.3]} 25. h5 {[%clk 0:00:48.7]}
25... f4 {[%clk 0:02:13.7]} 26. Bxg6+ {[%clk 0:00:48.5]} 26... Kh8 {[%clk
0:02:14.1]} 27. Bxf4 {[%clk 0:00:19.1]} 27... Nxf4 {[%clk 0:02:12.5]} 28. Nf5
{[%clk 0:00:19.7]} 28... Qf6 {[%clk 0:02:09.4]} 29. Nxd6 {[%clk 0:00:19.5]}
29... Rf8 {[%clk 0:02:08.4]} 30. Ne4 {[%clk 0:00:19.1]} 30... Qc6 {[%clk
0:02:03.8]} 31. Qc2 {[%clk 0:00:19.1]} 31... Nc5 {[%clk 0:02:00.4]} 32. b4
{[%clk 0:00:18.5]} 32... Ncd3 {[%clk 0:01:58.8]} 33. Re3 {[%clk 0:00:17.6]}
33... Nxg6 {[%clk 0:01:57.4]} 34. hxg6 {[%clk 0:00:17.5]} 34... Nf4 {[%clk
0:01:57.8]} 35. Ng3 {[%clk 0:00:16.4]} 35... Nxg2 {[%clk 0:01:56]} 36. Kxg2
{[%clk 0:00:16.4]} 36... Rxf3 {[%clk 0:01:56.3]} 37. Rxf3 {[%clk 0:00:07.6]}
37... Qxf3+ {[%clk 0:01:57.2]} 38. Kf1 {[%clk 0:00:07.7]} 38... Rf8 {[%clk
0:01:56.1]} 39. a7 {[%clk 0:00:05.9]} 39... Qxg3 {[%clk 0:01:54]} 40. Ra5 {[%clk
0:00:01.9]} 40... Qg2+ {[%clk 0:01:48.8]} 0-1

[Event "*** SCC Grand Prix: Titled Tuesday Blitz"]
[Site "Chess.com"]
[Date "2020.06.02"]
[Round "4"]
[White "Sanroto99"]
[Black "Lenyas66"]
[Result "0-1"]
[WhiteElo "2312"]
[BlackElo "2507"]
[TimeControl "180+1"]
[EndTime "10:38:15 PDT"]
[Termination "Lenyas66 won by checkmate"]

1. d4 {[%clk 0:03:00.9]} 1... e6 {[%clk 0:02:59.5]} 2. c4 {[%clk 0:03:00.5]}
2... Bb4+ {[%clk 0:02:59.1]} 3. Bd2 {[%clk 0:02:58.5]} 3... a5 {[%clk
0:02:59.1]} 4. Nf3 {[%clk 0:02:56.6]} 4... Nf6 {[%clk 0:02:59]} 5. e3 {[%clk
0:02:46.8]} 5... d5 {[%clk 0:02:58.8]} 6. Nc3 {[%clk 0:02:36.1]} 6... O-O {[%clk
0:02:58.5]} 7. Be2 {[%clk 0:02:35.6]} 7... b6 {[%clk 0:02:58.2]} 8. O-O {[%clk
0:02:35.7]} 8... Bb7 {[%clk 0:02:56.1]} 9. b3 {[%clk 0:02:35.7]} 9... Nbd7
{[%clk 0:02:54.1]} 10. a3 {[%clk 0:02:35.2]} 10... Bxc3 {[%clk 0:02:52.1]} 11.
Bxc3 {[%clk 0:02:36.1]} 11... Ne4 {[%clk 0:02:52.2]} 12. Qc2 {[%clk 0:02:31.5]}
12... f5 {[%clk 0:02:52.1]} 13. b4 {[%clk 0:02:26.2]} 13... a4 {[%clk 0:02:46]}
14. b5 {[%clk 0:02:06.9]} 14... Rf6 {[%clk 0:02:43.2]} 15. Ne5 {[%clk
0:02:01.8]} 15... Nxe5 {[%clk 0:02:40.9]} 16. dxe5 {[%clk 0:02:00.6]} 16... Rg6
{[%clk 0:02:41]} 17. Bf3 {[%clk 0:01:44.6]} 17... Ng5 {[%clk 0:02:37.3]} 18. Qe2
{[%clk 0:01:37.7]} 18... Nxf3+ {[%clk 0:02:32]} 19. Qxf3 {[%clk 0:01:31.4]}
19... Rb8 {[%clk 0:02:32.1]} 20. g3 {[%clk 0:01:29.4]} 20... dxc4 {[%clk
0:02:31.3]} 21. Qe2 {[%clk 0:01:29.4]} 21... Be4 {[%clk 0:02:24.6]} 22. Rfd1
{[%clk 0:01:16.4]} 22... Bd3 {[%clk 0:02:24.4]} 23. Qb2 {[%clk 0:01:16.8]} 23...
Qd5 {[%clk 0:02:22.4]} 24. f4 {[%clk 0:01:04.7]} 24... h5 {[%clk 0:02:18.1]} 25.
Kf2 {[%clk 0:00:53.6]} 25... h4 {[%clk 0:02:17.4]} 26. Qc1 {[%clk 0:00:43.3]}
26... Rh6 {[%clk 0:02:15.6]} 27. Rh1 {[%clk 0:00:42.4]} 27... Kf7 {[%clk
0:02:10.1]} 28. Qd1 {[%clk 0:00:18.5]} 28... Rbh8 {[%clk 0:02:01]} 29. g4 {[%clk
0:00:18.1]} 29... fxg4 {[%clk 0:02:00.9]} 30. Qxg4 {[%clk 0:00:17.3]} 30... Rg6
{[%clk 0:02:00.6]} 31. Qh3 {[%clk 0:00:17]} 31... Bf5 {[%clk 0:01:58.3]} 32. Qf1
{[%clk 0:00:14]} 32... Bg4 {[%clk 0:01:42.9]} 33. Ke1 {[%clk 0:00:03.7]} 33...
Bf3 {[%clk 0:01:38.4]} 34. Rg1 {[%clk 0:00:03.6]} 34... Rxg1 {[%clk 0:01:36.1]}
35. Qxg1 {[%clk 0:00:04.5]} 35... Qd3 {[%clk 0:01:35.9]} 36. Rc1 {[%clk
0:00:01.9]} 36... Qe2# {[%clk 0:01:35.6]} 0-1

[Event "*** SCC Grand Prix: Titled Tuesday Blitz"]
[Site "Chess.com"]
[Date "2020.06.02"]
[Round "4"]
[White "Siemba"]
[Black "robertofabregas"]
[Result "1-0"]
[WhiteElo "2384"]
[BlackElo "2055"]
[TimeControl "180+1"]
[EndTime "10:38:15 PDT"]
[Termination "Siemba won by resignation"]

1. e4 {[%clk 0:03:00.9]} 1... c5 {[%clk 0:02:58.9]} 2. Nf3 {[%clk 0:03:01.2]}
2... d6 {[%clk 0:02:58.9]} 3. d4 {[%clk 0:03:01.9]} 3... cxd4 {[%clk 0:02:59.8]}
4. Nxd4 {[%clk 0:03:02.8]} 4... Nf6 {[%clk 0:03:00.1]} 5. Nc3 {[%clk 0:03:03.6]}
5... e6 {[%clk 0:03:00.5]} 6. g4 {[%clk 0:03:00.4]} 6... h6 {[%clk 0:02:57.8]}
7. h4 {[%clk 0:03:00.1]} 7... e5 {[%clk 0:02:56.5]} 8. Bb5+ {[%clk 0:02:46.5]}
8... Nbd7 {[%clk 0:02:44.3]} 9. Nf5 {[%clk 0:02:46.4]} 9... a6 {[%clk
0:02:37.4]} 10. Bxd7+ {[%clk 0:02:33.5]} 10... Qxd7 {[%clk 0:02:33.3]} 11. Rg1
{[%clk 0:02:25.7]} 11... g6 {[%clk 0:02:12.2]} 12. Ne3 {[%clk 0:02:23.1]} 12...
Qc6 {[%clk 0:01:53.5]} 13. Ned5 {[%clk 0:02:19.4]} 13... Bg7 {[%clk 0:01:47.1]}
14. g5 {[%clk 0:01:56.8]} 14... Nxd5 {[%clk 0:01:31.4]} 15. Nxd5 {[%clk
0:01:56.1]} 15... Be6 {[%clk 0:01:29.8]} 16. Be3 {[%clk 0:01:45.1]} 16... Bxd5
{[%clk 0:01:25.5]} 17. exd5 {[%clk 0:01:45.3]} 17... Qb5 {[%clk 0:01:07.2]} 18.
b3 {[%clk 0:01:45]} 18... h5 {[%clk 0:00:51.5]} 19. c4 {[%clk 0:01:44.3]} 19...
Qb4+ {[%clk 0:00:49]} 20. Qd2 {[%clk 0:01:44.7]} 20... Qxd2+ {[%clk 0:00:48.9]}
21. Kxd2 {[%clk 0:01:45.6]} 21... Rc8 {[%clk 0:00:48.7]} 22. Rac1 {[%clk
0:01:45.8]} 22... Kd7 {[%clk 0:00:45.9]} 23. Rc2 {[%clk 0:01:42]} 23... b5
{[%clk 0:00:44.6]} 24. Rgc1 {[%clk 0:01:39.4]} 24... b4 {[%clk 0:00:39.1]} 25.
a3 {[%clk 0:01:39.3]} 25... a5 {[%clk 0:00:38]} 26. axb4 {[%clk 0:01:39.2]}
26... axb4 {[%clk 0:00:37.8]} 27. Ra1 {[%clk 0:01:39.9]} 27... e4 {[%clk
0:00:37.8]} 28. Ra7+ {[%clk 0:01:37.3]} 28... Rc7 {[%clk 0:00:35.7]} 29. Rxc7+
{[%clk 0:01:32.9]} 29... Kxc7 {[%clk 0:00:36.6]} 30. Ra2 {[%clk 0:01:33.5]}
30... Bc3+ {[%clk 0:00:33.8]} 31. Kc2 {[%clk 0:01:31.9]} 31... Rf8 {[%clk
0:00:27.4]} 32. Ra7+ {[%clk 0:01:29.3]} 32... Kd8 {[%clk 0:00:27.5]} 33. c5
{[%clk 0:01:26]} 33... Be5 {[%clk 0:00:23.2]} 34. c6 {[%clk 0:01:25.8]} 34...
Kc8 {[%clk 0:00:21.9]} 35. Ra8+ {[%clk 0:01:24.8]} 1-0

[Event "*** SCC Grand Prix: Titled Tuesday Blitz"]
[Site "Chess.com"]
[Date "2020.06.02"]
[Round "4"]
[White "Sychev_Klementy"]
[Black "ftorodent"]
[Result "1-0"]
[WhiteElo "2848"]
[BlackElo "2675"]
[TimeControl "180+1"]
[EndTime "10:38:18 PDT"]
[Termination "Sychev_Klementy won by resignation"]

1. e4 {[%clk 0:03:00.9]} 1... e6 {[%clk 0:02:59.6]} 2. d4 {[%clk 0:02:57.1]}
2... d5 {[%clk 0:02:59.6]} 3. Nc3 {[%clk 0:02:57.2]} 3... Nf6 {[%clk 0:02:58.1]}
4. Bg5 {[%clk 0:02:54.2]} 4... dxe4 {[%clk 0:02:57.2]} 5. Nxe4 {[%clk
0:02:53.9]} 5... Nbd7 {[%clk 0:02:57.3]} 6. Nxf6+ {[%clk 0:02:50.6]} 6... Nxf6
{[%clk 0:02:56.6]} 7. Nf3 {[%clk 0:02:50.6]} 7... h6 {[%clk 0:02:56]} 8. Be3
{[%clk 0:02:49.9]} 8... Bd6 {[%clk 0:02:55.2]} 9. Qe2 {[%clk 0:02:50]} 9... b6
{[%clk 0:02:41.7]} 10. O-O-O {[%clk 0:02:44]} 10... Bb7 {[%clk 0:02:41.1]} 11.
Ne5 {[%clk 0:02:35.4]} 11... O-O {[%clk 0:02:24.2]} 12. Rg1 {[%clk 0:02:33.5]}
12... Nd5 {[%clk 0:02:20]} 13. g4 {[%clk 0:02:27.9]} 13... c5 {[%clk 0:01:33]}
14. g5 {[%clk 0:01:57.2]} 14... Nxe3 {[%clk 0:01:30.2]} 15. Qxe3 {[%clk
0:01:54.5]} 15... cxd4 {[%clk 0:01:29.5]} 16. Qxd4 {[%clk 0:01:37.7]} 16... Bxe5
{[%clk 0:00:44.4]} 17. Qxe5 {[%clk 0:01:34.3]} 17... Qb8 {[%clk 0:00:44.9]} 18.
Rd6 {[%clk 0:01:18.3]} 18... hxg5 {[%clk 0:00:14.5]} 19. Qxg5 {[%clk 0:00:56.5]}
19... g6 {[%clk 0:00:13.5]} 20. Rxe6 {[%clk 0:00:56.7]} 1-0

[Event "*** SCC Grand Prix: Titled Tuesday Blitz"]
[Site "Chess.com"]
[Date "2020.06.02"]
[Round "4"]
[White "RestartingChess"]
[Black "Anwesh9792"]
[Result "0-1"]
[WhiteElo "2491"]
[BlackElo "2726"]
[TimeControl "180+1"]
[EndTime "10:38:18 PDT"]
[Termination "Anwesh9792 won by resignation"]

1. e4 {[%clk 0:03:00.9]} 1... e5 {[%clk 0:02:58]} 2. Nf3 {[%clk 0:03:01.2]} 2...
Nc6 {[%clk 0:02:58.2]} 3. Bc4 {[%clk 0:03:01.4]} 3... Nf6 {[%clk 0:02:57.8]} 4.
Ng5 {[%clk 0:02:57.5]} 4... d5 {[%clk 0:02:57]} 5. exd5 {[%clk 0:02:58.4]} 5...
Na5 {[%clk 0:02:57.2]} 6. Bb5+ {[%clk 0:02:59.1]} 6... c6 {[%clk 0:02:57.6]} 7.
dxc6 {[%clk 0:03:00]} 7... bxc6 {[%clk 0:02:58.5]} 8. Qf3 {[%clk 0:03:00.9]}
8... Be7 {[%clk 0:02:57.9]} 9. Bd3 {[%clk 0:03:00.5]} 9... O-O {[%clk
0:02:46.1]} 10. Ne4 {[%clk 0:02:49.1]} 10... Nd5 {[%clk 0:02:43.6]} 11. Nec3
{[%clk 0:02:44.4]} 11... f5 {[%clk 0:02:37.5]} 12. O-O {[%clk 0:02:37]} 12... e4
{[%clk 0:02:33.7]} 13. Nxe4 {[%clk 0:02:37.6]} 13... fxe4 {[%clk 0:02:34.4]} 14.
Qxe4 {[%clk 0:02:38.3]} 14... Bf5 {[%clk 0:02:29.8]} 15. Qd4 {[%clk 0:02:34.2]}
15... c5 {[%clk 0:02:02.5]} 16. Qa4 {[%clk 0:02:32.1]} 16... Bxd3 {[%clk
0:02:01.8]} 17. cxd3 {[%clk 0:02:33]} 17... Nb4 {[%clk 0:01:58.9]} 18. b3 {[%clk
0:02:14.6]} 18... Bf6 {[%clk 0:01:58.3]} 19. Nc3 {[%clk 0:02:13.2]} 19... Bd4
{[%clk 0:01:54.4]} 20. Ba3 {[%clk 0:02:09.7]} 20... Nxd3 {[%clk 0:01:51.7]} 21.
Ne4 {[%clk 0:02:00.7]} 21... Kh8 {[%clk 0:01:44.4]} 22. Rad1 {[%clk 0:01:31.6]}
22... Qd5 {[%clk 0:01:24]} 23. Qxa5 {[%clk 0:00:56.7]} 23... Qxe4 {[%clk
0:01:23.4]} 24. Qc7 {[%clk 0:00:56.5]} 24... Nxf2 {[%clk 0:01:19.8]} 25. Rxf2
{[%clk 0:00:56.2]} 25... Bxf2+ {[%clk 0:01:18.9]} 26. Kh1 {[%clk 0:00:57.1]}
26... Qe2 {[%clk 0:01:17.2]} 27. Rc1 {[%clk 0:00:53.5]} 27... Bd4 {[%clk
0:01:16.9]} 28. h3 {[%clk 0:00:41.2]} 28... Rf1+ {[%clk 0:01:10]} 29. Rxf1
{[%clk 0:00:40.9]} 29... Qxf1+ {[%clk 0:01:10.9]} 30. Kh2 {[%clk 0:00:41.8]}
30... Bg1+ {[%clk 0:01:11.5]} 31. Kg3 {[%clk 0:00:42.1]} 31... Qf2+ {[%clk
0:01:06.5]} 32. Kg4 {[%clk 0:00:42.4]} 32... Qxg2+ {[%clk 0:01:06.6]} 33. Kf5
{[%clk 0:00:41.3]} 33... Rf8+ {[%clk 0:01:04.2]} 34. Ke6 {[%clk 0:00:41.7]}
34... Qe4+ {[%clk 0:01:01.8]} 35. Kd7 {[%clk 0:00:42.1]} 35... Rf7+ {[%clk
0:01:01.3]} 36. Kc8 {[%clk 0:00:42.3]} 36... Rxc7+ {[%clk 0:01:01.9]} 37. Kxc7
{[%clk 0:00:42.5]} 0-1

[Event "*** SCC Grand Prix: Titled Tuesday Blitz"]
[Site "Chess.com"]
[Date "2020.06.02"]
[Round "4"]
[White "PredragNikac"]
[Black "Fusikk"]
[Result "0-1"]
[WhiteElo "2368"]
[BlackElo "2605"]
[TimeControl "180+1"]
[EndTime "10:38:18 PDT"]
[Termination "Fusikk won by resignation"]

1. d4 {[%clk 0:03:00.9]} 1... Nf6 {[%clk 0:02:55.3]} 2. Bg5 {[%clk 0:03:00.8]}
2... Ne4 {[%clk 0:02:54.5]} 3. Bf4 {[%clk 0:03:00.6]} 3... d5 {[%clk 0:02:54.5]}
4. e3 {[%clk 0:03:00.3]} 4... Bf5 {[%clk 0:02:53.5]} 5. Bd3 {[%clk 0:02:59.9]}
5... e6 {[%clk 0:02:53.1]} 6. f3 {[%clk 0:02:59.8]} 6... Nd6 {[%clk 0:02:51]} 7.
Bxd6 {[%clk 0:02:59.5]} 7... Bxd6 {[%clk 0:02:50.3]} 8. Bxf5 {[%clk 0:02:58.9]}
8... Qh4+ {[%clk 0:02:37.3]} 9. Kf1 {[%clk 0:02:58.1]} 9... exf5 {[%clk
0:02:37.1]} 10. f4 {[%clk 0:02:57.2]} 10... O-O {[%clk 0:02:34.8]} 11. Nf3
{[%clk 0:02:56.9]} 11... Qe7 {[%clk 0:02:34.9]} 12. Qd3 {[%clk 0:02:53.7]} 12...
g6 {[%clk 0:02:32.9]} 13. h4 {[%clk 0:02:51.7]} 13... h5 {[%clk 0:02:31.5]} 14.
Ne5 {[%clk 0:02:49.5]} 14... Kg7 {[%clk 0:02:30.9]} 15. Nd2 {[%clk 0:02:45]}
15... c5 {[%clk 0:02:25.5]} 16. Re1 {[%clk 0:02:42.8]} 16... c4 {[%clk
0:02:22.6]} 17. Qe2 {[%clk 0:02:39.6]} 17... f6 {[%clk 0:02:21]} 18. Nef3 {[%clk
0:02:37.5]} 18... Nc6 {[%clk 0:02:20.7]} 19. c3 {[%clk 0:02:37]} 19... b5 {[%clk
0:02:20.1]} 20. Rh3 {[%clk 0:02:36.9]} 20... b4 {[%clk 0:02:16.7]} 21. Rg3
{[%clk 0:02:36.4]} 21... Kh6 {[%clk 0:02:14.2]} 22. Kg1 {[%clk 0:02:14.3]} 22...
Rab8 {[%clk 0:02:13.2]} 23. Nxc4 {[%clk 0:01:30.8]} 23... dxc4 {[%clk
0:02:10.8]} 24. Qxc4 {[%clk 0:01:31.7]} 24... Rfc8 {[%clk 0:02:09.6]} 25. Qd5
{[%clk 0:01:31.3]} 25... bxc3 {[%clk 0:01:59.4]} 26. e4 {[%clk 0:01:30.9]} 26...
cxb2 {[%clk 0:01:30.7]} 27. exf5 {[%clk 0:01:24.3]} 27... b1=Q {[%clk
0:01:29.6]} 28. Rxg6+ {[%clk 0:01:21.9]} 28... Kh7 {[%clk 0:01:29.7]} 29. Rxb1
{[%clk 0:01:06.7]} 29... Rxb1+ {[%clk 0:01:28.8]} 30. Kf2 {[%clk 0:01:06.7]}
30... Nb4 {[%clk 0:01:25.4]} 31. Qb5 {[%clk 0:00:49.5]} 31... a6 {[%clk
0:01:10.3]} 32. Qb6 {[%clk 0:00:31.4]} 32... Nd3+ {[%clk 0:01:08.6]} 0-1

[Event "*** SCC Grand Prix: Titled Tuesday Blitz"]
[Site "Chess.com"]
[Date "2020.06.02"]
[Round "4"]
[White "tapu2"]
[Black "GM_Buhmann"]
[Result "0-1"]
[WhiteElo "2533"]
[BlackElo "2837"]
[TimeControl "180+1"]
[EndTime "10:38:31 PDT"]
[Termination "GM_Buhmann won by resignation"]

1. c4 {[%clk 0:02:58.4]} 1... e6 {[%clk 0:02:57.2]} 2. g3 {[%clk 0:02:58.1]}
2... d5 {[%clk 0:02:57.4]} 3. Bg2 {[%clk 0:02:58.2]} 3... Nf6 {[%clk 0:02:58]}
4. Nf3 {[%clk 0:02:58.1]} 4... Be7 {[%clk 0:02:58.6]} 5. O-O {[%clk 0:02:58]}
5... O-O {[%clk 0:02:59.2]} 6. d4 {[%clk 0:02:58.2]} 6... c6 {[%clk 0:02:58.9]}
7. Qc2 {[%clk 0:02:57.4]} 7... b6 {[%clk 0:02:58.7]} 8. Nbd2 {[%clk 0:02:57.5]}
8... Bb7 {[%clk 0:02:58.1]} 9. e4 {[%clk 0:02:57.3]} 9... Na6 {[%clk 0:02:58.6]}
10. a3 {[%clk 0:02:56.8]} 10... c5 {[%clk 0:02:57.3]} 11. exd5 {[%clk
0:02:55.9]} 11... exd5 {[%clk 0:02:57.4]} 12. dxc5 {[%clk 0:02:56.1]} 12... Nxc5
{[%clk 0:02:58]} 13. b4 {[%clk 0:02:56.1]} 13... Ne6 {[%clk 0:02:58]} 14. Bb2
{[%clk 0:02:56]} 14... a5 {[%clk 0:02:58.3]} 15. Qb3 {[%clk 0:02:50.1]} 15...
dxc4 {[%clk 0:02:46.7]} 16. Nxc4 {[%clk 0:02:46.1]} 16... axb4 {[%clk
0:02:40.3]} 17. axb4 {[%clk 0:02:45.3]} 17... Bd5 {[%clk 0:02:39.9]} 18. Qd3
{[%clk 0:01:46.6]} 18... Rxa1 {[%clk 0:02:22.6]} 19. Bxa1 {[%clk 0:01:42.7]}
19... Qc7 {[%clk 0:02:09.2]} 20. Ne3 {[%clk 0:00:52.9]} 20... Be4 {[%clk
0:02:05.4]} 21. Qb3 {[%clk 0:00:50.9]} 21... Rd8 {[%clk 0:01:51.1]} 22. Nh4
{[%clk 0:00:37]} 22... Bxg2 {[%clk 0:01:42]} 23. Nhxg2 {[%clk 0:00:34.4]} 23...
Nd4 {[%clk 0:01:25.2]} 24. Bxd4 {[%clk 0:00:33.4]} 24... Rxd4 {[%clk 0:01:26.1]}
25. b5 {[%clk 0:00:12.4]} 25... Bc5 {[%clk 0:01:14.6]} 26. Nf4 {[%clk
0:00:09.6]} 26... Qd7 {[%clk 0:01:10.2]} 27. Ned5 {[%clk 0:00:09.1]} 27... Nxd5
{[%clk 0:01:08.2]} 0-1

[Event "*** SCC Grand Prix: Titled Tuesday Blitz"]
[Site "Chess.com"]
[Date "2020.06.02"]
[Round "4"]
[White "arminmusovic"]
[Black "SantoBlue"]
[Result "0-1"]
[WhiteElo "2528"]
[BlackElo "2782"]
[TimeControl "180+1"]
[EndTime "10:38:31 PDT"]
[Termination "SantoBlue won by resignation"]

1. a3 {[%clk 0:03:00.9]} 1... e5 {[%clk 0:02:59.1]} 2. Nc3 {[%clk 0:03:01.3]}
2... d5 {[%clk 0:02:58.9]} 3. d4 {[%clk 0:03:01.5]} 3... e4 {[%clk 0:02:57.7]}
4. Bf4 {[%clk 0:03:01.7]} 4... c6 {[%clk 0:02:56.4]} 5. f3 {[%clk 0:03:00.6]}
5... f5 {[%clk 0:02:46.4]} 6. Qd2 {[%clk 0:03:00.6]} 6... Nf6 {[%clk 0:02:44.1]}
7. Nh3 {[%clk 0:03:01]} 7... Be7 {[%clk 0:02:43.9]} 8. e3 {[%clk 0:03:00.4]}
8... Nh5 {[%clk 0:02:39.8]} 9. Be5 {[%clk 0:02:58.2]} 9... Nd7 {[%clk
0:02:38.8]} 10. O-O-O {[%clk 0:02:47.4]} 10... Nxe5 {[%clk 0:02:31.7]} 11. dxe5
{[%clk 0:02:48.3]} 11... g6 {[%clk 0:02:31.7]} 12. Be2 {[%clk 0:02:45.5]} 12...
Ng7 {[%clk 0:02:29.8]} 13. f4 {[%clk 0:02:29.5]} 13... Ne6 {[%clk 0:02:27.5]}
14. g4 {[%clk 0:02:23.2]} 14... Ng7 {[%clk 0:02:21]} 15. Rhg1 {[%clk 0:02:20.9]}
15... fxg4 {[%clk 0:02:20.9]} 16. Bxg4 {[%clk 0:02:20.7]} 16... Bxg4 {[%clk
0:02:21.8]} 17. Rxg4 {[%clk 0:02:21.1]} 17... Nf5 {[%clk 0:02:22.7]} 18. Ng5
{[%clk 0:02:14.7]} 18... Qb6 {[%clk 0:02:09.9]} 19. Nxd5 {[%clk 0:01:36.6]}
19... cxd5 {[%clk 0:02:07]} 20. Qxd5 {[%clk 0:01:35.6]} 20... Bxg5 {[%clk
0:02:02.2]} 21. Qd7+ {[%clk 0:01:35.7]} 21... Kf8 {[%clk 0:02:00.9]} 22. Rxg5
{[%clk 0:01:35.9]} 22... Ne7 {[%clk 0:01:17]} 23. Rd6 {[%clk 0:01:08.1]} 23...
Qxe3+ {[%clk 0:01:15.2]} 24. Kb1 {[%clk 0:01:08.7]} 24... Re8 {[%clk 0:01:11.2]}
25. Rf6+ {[%clk 0:00:30]} 25... Kg7 {[%clk 0:01:08.3]} 26. Re6 {[%clk 0:00:30]}
26... Rhf8 {[%clk 0:00:54.3]} 27. Rxe7+ {[%clk 0:00:29.9]} 27... Rxe7 {[%clk
0:00:55.2]} 28. Qxe7+ {[%clk 0:00:30.8]} 28... Rf7 {[%clk 0:00:56.1]} 29. Qd8
{[%clk 0:00:29.4]} 29... Qxf4 {[%clk 0:00:52.3]} 30. e6 {[%clk 0:00:29.9]} 30...
Qf1+ {[%clk 0:00:52.5]} 31. Ka2 {[%clk 0:00:28.5]} 31... Qc4+ {[%clk 0:00:52.7]}
0-1

[Event "*** SCC Grand Prix: Titled Tuesday Blitz"]
[Site "Chess.com"]
[Date "2020.06.02"]
[Round "4"]
[White "Shockerlover"]
[Black "RianKapriaga"]
[Result "0-1"]
[WhiteElo "1701"]
[BlackElo "2190"]
[TimeControl "180+1"]
[EndTime "10:38:31 PDT"]
[Termination "RianKapriaga won on time"]

1. d4 {[%clk 0:03:00.6]} 1... Nf6 {[%clk 0:02:57.9]} 2. c4 {[%clk 0:03:01.5]}
2... e6 {[%clk 0:02:56.5]} 3. Nf3 {[%clk 0:03:01.2]} 3... b6 {[%clk 0:02:55.1]}
4. g3 {[%clk 0:03:00.4]} 4... Ba6 {[%clk 0:02:53.5]} 5. Qc2 {[%clk 0:02:55.3]}
5... c5 {[%clk 0:02:51.3]} 6. Bg2 {[%clk 0:02:48.6]} 6... Nc6 {[%clk 0:02:49.9]}
7. e3 {[%clk 0:02:25.2]} 7... Rc8 {[%clk 0:02:45.1]} 8. O-O {[%clk 0:02:21.7]}
8... d5 {[%clk 0:02:40.5]} 9. b3 {[%clk 0:02:17.4]} 9... Be7 {[%clk 0:02:34.9]}
10. Rd1 {[%clk 0:02:14.7]} 10... O-O {[%clk 0:02:33.3]} 11. dxc5 {[%clk
0:02:14.2]} 11... Bxc5 {[%clk 0:02:30.9]} 12. Bb2 {[%clk 0:02:10.1]} 12... Qe7
{[%clk 0:02:27.5]} 13. cxd5 {[%clk 0:01:37.5]} 13... exd5 {[%clk 0:02:23]} 14.
Nc3 {[%clk 0:01:32.6]} 14... Nb4 {[%clk 0:02:18.2]} 15. Qd2 {[%clk 0:01:25]}
15... Rfd8 {[%clk 0:02:13.9]} 16. Nd4 {[%clk 0:01:21.1]} 16... Ne4 {[%clk
0:02:07.6]} 17. Nxe4 {[%clk 0:01:19.2]} 17... dxe4 {[%clk 0:02:08.5]} 18. a3
{[%clk 0:00:41.8]} 18... Nd3 {[%clk 0:02:07.9]} 19. Bc3 {[%clk 0:00:40.1]} 19...
g6 {[%clk 0:01:57.7]} 20. b4 {[%clk 0:00:39.3]} 20... Bd6 {[%clk 0:01:56.5]} 21.
b5 {[%clk 0:00:36.6]} 21... Bb7 {[%clk 0:01:53.4]} 22. Bh3 {[%clk 0:00:24.2]}
22... f5 {[%clk 0:01:45]} 23. g4 {[%clk 0:00:22.1]} 23... Qh4 {[%clk 0:01:38.2]}
24. Qa2+ {[%clk 0:00:05.2]} 24... Kh8 {[%clk 0:01:21.4]} 25. Ne6+ {[%clk
0:00:04.6]} 25... Rxc3 {[%clk 0:01:20]} 0-1